Cogmind - Beta 13 @@@ ROGUE MODE // 2024.05.15 @ 15:34:23 Player: ptdel Result: Self-destructed Performance ------------- Evolutions (2) 1000 Regions Visited (3) 600 Robots Destroyed (30) 150 Value Destroyed (815) 815 Prototype IDs (5) 100 Alien Tech Used (0) 0 Bonus (0) 0 TOTAL SCORE: 2665 Bonus ------- None Cogmind --------- Core Integrity 493/550 Matter 236/300 Energy 9/100 System Corruption 1% Temperature Cool (0) Movement Rolling (115) Ox1 Location -8/Materials Parts ------- > --- POWER (1) -------- (None) > --- PROPULSION (4) --- Compact Wheel > --- UTILITY (4) ------ Heat Sink Large Storage Unit Terrain Scan Processor Shield Generator > --- WEAPON (2) ------- Beam Rifle Spread Laser > --- INVENTORY (15) --- Light Ion Engine Light Ion Engine Light Ion Engine Light Nuclear Core Cesium-ion Thruster Cesium-ion Thruster Cesium-ion Thruster Cesium-ion Thruster Cooling System Medium Laser Small Laser Autogun Improved Grenade Launcher Peak State ------------ > --- POWER ------------ Light Ion Engine > --- PROPULSION ------- Wheel Compact Wheel > --- UTILITY ---------- Heat Sink Large Storage Unit Terrain Scan Processor Terrain Scan Processor > --- WEAPON ----------- Beam Rifle Improved Grenade Launcher > --- INVENTORY -------- Light Ion Engine Light Ion Engine Light Ion Engine Light Nuclear Core Cesium-ion Thruster Cesium-ion Thruster Cesium-ion Thruster Cesium-ion Thruster Cooling System Medium Laser Small Laser Spread Laser Autogun [Rating: 16] Favorites ----------- Power Ion Engine Engine Ion Engine Propulsion Light Treads Treads Light Treads Wheel Compact Wheel Utility Large Storage Unit Device Heat Sink Storage Large Storage Unit Processor Terrain Scan Processor Protection Medium Armor Plating Weapon Light Assault Rifle Energy Gun Beam Rifle Ballistic Gun Light Assault Rifle Launcher Improved Grenade Launcher Build | -11 -10 -9 -8 ------- Run | Yrd Mat Mat Mat Slots Evolved 4 | . . 2 2 Power . | . . . . Propulsion 2 | . . . 2 Utility 2 | . . 2 . Weapon . | . . . . Parts Attached 30 | 6 3 19 2 Power 5 | 1 1 3 . Engine 5 | 1 1 3 . Core . | . . . . Reactor . | . . . . Propulsion 6 | 2 1 3 . Treads 4 | 2 1 1 . Leg . | . . . . Wheel 2 | . . 2 . Hover . | . . . . Flight . | . . . . Utility 11 | 1 1 8 1 Device 5 | . . 4 1 Storage 2 | 1 1 . . Processor 2 | . . 2 . Hackware . | . . . . Protection 2 | . . 2 . Artifact . | . . . . Weapon 8 | 2 . 5 1 Energy Gun 3 | . . 2 1 Energy Cannon . | . . . . Ballistic Gun 4 | 2 . 2 . Ballistic Cannon . | . . . . Launcher 1 | . . 1 . Special Weapon . | . . . . Impact Weapon . | . . . . Slashing Weapon . | . . . . Piercing Weapon . | . . . . Special Melee Weapon . | . . . . Unidentified Prototypes . | . . . . Parts Lost 14 | . 2 10 2 Power 4 | . 1 2 1 Propulsion 5 | . 1 3 1 Utility 2 | . . 2 . Weapon 3 | . . 3 . Highest Loss Streak 6 | . 1 6 2 To Critical Strikes . | . . . . Average Slot Usage (%) 89 | . 85 92 81 Engine 11 | . 14 11 9 Treads 20 | . 28 17 . Wheel 2 | . . 3 18 Device 4 | . . 5 16 Storage 12 | . 14 11 9 Processor 6 | . . 10 10 Protection 6 | . . 10 . Energy Gun 3 | . . 4 12 Ballistic Gun 20 | . 28 17 6 Naked Turns . | . . . . Heaviest Build 44 | 12 27 44 32 Greatest Support 40 | 40 40 40 26 Greatest Overweight (x) 1 | . . 1 1 Average Overweight (x) . | . . . 1 Largest Inventory Capacity 15 | 8 15 15 15 Average Capacity 13 | 7 10 15 15 Most Carried 15 | 4 13 15 14 Average Carried 10 | 2 8 12 13 Final Capacity 15 | 8 15 15 15 Final Carried 13 | 4 12 13 13 Class Distribution -------------------- 100% | Mutant Dominant Class ---------------- Mutant | -10/Materials Mutant | -9/Materials Mutant | -8/Materials Resources | -11 -10 -9 -8 ----------- Run | Yrd Mat Mat Mat Matter Collected 625 | 195 137 293 . Remotely . | . . . . Salvage Created 1073 | . 320 738 15 Parts 64 | . 25 38 1 Haulers Intercepted 1 | . 1 . . Recyclers Shooed . | . . . . Parts Field Recycled . | . . . . Retrieved Matter . | . . . . Parts Self-Destructed . | . . . . Prevented . | . . . . Kills | -11 -10 -9 -8 ------- Run | Yrd Mat Mat Mat Combat Hostiles Destroyed 26 | . 8 17 1 Guns 25 | . 8 16 1 AOE 1 | . . 1 . Classes Destroyed 8 | . 4 4 . Worker 1 | . . 1 . Hauler 1 | . 1 . . Recycler 1 | . . 1 . Watcher 1 | . 1 . . Swarmer 8 | . 3 4 1 Grunt 14 | . 5 9 . Duelist 1 | . . 1 . Sentry 3 | . . 3 . Best Kill Streak 4 | . 3 4 1 Combat Bots Only 4 | . 3 4 1 Max Kills in Single Turn 2 | . 2 1 1 Gunslinging 1 | . 1 . . Exploded 1 | . . 1 . Melee . | . . . . Uniques/NPCs Destroyed . | . . . . Combat | -11 -10 -9 -8 -------- Run | Yrd Mat Mat Mat Hostile Shots Fired 184 | . 30 127 27 Missed 48 | . 9 31 8 Damage Taken 1991 | . 384 1388 219 Core 294 | . 29 208 57 Absorbed by Shields 41 | . . . 41 Regen/Repaired (Parts) 18 | . . 18 . Core Remaining (%) 78 | 100 88 48 . Volleys Fired 110 | . 29 76 5 Largest 2 | . 2 2 2 Hottest 121 | . 40 106 121 Shots Fired 213 | . 58 145 10 Gun 212 | . 58 144 10 Cannon . | . . . . Launcher 1 | . . 1 . Special . | . . . . Kinetic 140 | . 58 80 2 Thermal 72 | . . 64 8 Explosive 1 | . . 1 . Electromagnetic . | . . . . Robot Hit Streak 12 | . 12 9 3 Robot Miss Streak 4 | . 2 3 4 Penetration Max . | . . . . Secondary Targets 1 | . 1 . . Max Gunslinging Chain 1 | . 1 . . Shots Hit Robots 153 | . 42 106 5 Core Hits 66 | . 22 41 3 Critical Kills . | . . . . Critical Parts Destroyed 1 | . 1 . . Critical Strikes 1 | . 1 . . Destroy 1 | . 1 . . Melee Attacks . | . . . . Impact . | . . . . Slashing . | . . . . Piercing . | . . . . Sneak Attacks . | . . . . Combat Hostiles . | . . . . Follow-up Attacks . | . . . . Damage Inflicted 1665 | . 345 1252 68 Guns 1576 | . 345 1163 68 Cannons . | . . . . Explosions 86 | . . 86 . Melee . | . . . . Ramming 3 | . . 3 . Kinetic 951 | . 345 594 12 Thermal 625 | . . 569 56 Explosive 86 | . . 86 . Electromagnetic . | . . . . Impact . | . . . . Slashing . | . . . . Piercing . | . . . . Highest Corruption 1 | . . . 1 Average Corruption 1 | . . . 1 Corruption Purged . | . . . . Corruption Blocked . | . . . . Overload Shots . | . . . . Overflow Damage . | . . . . Projectiles . | . . . . Explosions . | . . . . Melee . | . . . . Knockbacks . | . . . . Impact . | . . . . Kinetic . | . . . . Secondary . | . . . . Self-Inflicted Damage . | . . . . Shots . | . . . . Rammed 1 | . . 1 . Targets Rammed 1 | . . 1 . Kicked . | . . . . Crushed . | . . . . Highest Temperature 252 | . 27 252 42 Average Temperature 56 | . 10 65 15 Received Heat Transfer 750 | . 168 474 108 Siege Activations . | . . . . Robots Corrupted . | . . . . Combat Hostiles . | . . . . Parts Fried . | . . . . Impact Corruptions . | . . . . Robots Melted . | . . . . Combat Hostiles . | . . . . Parts Melted 4 | . . 3 1 Heat Transferred 1705 | . . 1591 114 Parts Sabotaged . | . . . . Parts Stolen . | . . . . Parts Stripped . | . . . . Power Chain Reactions . | . . . . Alert | -11 -10 -9 -8 ------- Run | Yrd Mat Mat Mat Peak Influence 353 | . 264 353 196 Initial 117 | . . 59 117 Average 110 | . 127 109 146 Maximum Alert Level 1 | . 1 1 . Low Security (%) 79 | 100 87 73 100 Level 1 20 | . 12 26 . Level 2 . | . . . . Level 3 . | . . . . Level 4 . | . . . . Level 5 . | . . . . High Security . | . . . . Max Security . | . . . . Squads Dispatched 3 | . 1 1 1 Investigation 2 | . . 1 1 Extermination . | . . . . Reinforcement 1 | . 1 . . Assault . | . . . . Garrison . | . . . . Intercept . | . . . . Searches Triggered . | . . . . Construction Impeded . | . . . . Haulers Reinforced . | . . . . Active Scanning Responses . | . . . . Cargo Convoy Interrupts . | . . . . Stealth | -11 -10 -9 -8 --------- Run | Yrd Mat Mat Mat Distress Signals 5 | . 1 4 . Communications Jammed . | . . . . Distress Signals . | . . . . Times Spotted 57 | . 17 30 10 Peak Tracking Total 8 | . 4 6 8 Tactical Retreats 4 | . 2 2 . Traps | -11 -10 -9 -8 ------- Run | Yrd Mat Mat Mat Traps Triggered . | . . . . Indirectly . | . . . . Trap Hack Attempts . | . . . . Triggered . | . . . . Disarmed . | . . . . Reprogrammed . | . . . . Reused . | . . . . Traps Extracted . | . . . . Installed . | . . . . Triggered . | . . . . Machines | -11 -10 -9 -8 ---------- Run | Yrd Mat Mat Mat Machines Disabled . | . . . . Max in Single Turn . | . . . . Machines Repaired . | . . . . Machines Dismantled . | . . . . Machines Sabotaged . | . . . . Overloaded Fab Kills . | . . . . Hacking | -11 -10 -9 -8 --------- Run | Yrd Mat Mat Mat Machines Accessed 10 | . 4 5 1 Terminals 7 | . 4 2 1 Fabricators . | . . . . Repair Stations 2 | . . 2 . Recycling Units . | . . . . Scanalyzers 1 | . . 1 . Garrison Access . | . . . . Total Hacks 31 | . 10 16 5 Successful 16 | . 6 9 1 Failed 15 | . 4 7 4 Catastrophic 4 | . 3 . 1 Database Lockouts . | . . . . Manual 2 | . 2 . . Terminals 23 | . 10 8 5 Fabricators . | . . . . Repair Stations 5 | . . 5 . Recycling Units . | . . . . Scanalyzers 3 | . . 3 . Garrison Access . | . . . . Terminal Hacks 11 | . 6 4 1 Record 2 | . 1 . 1 Prototype ID Bank 3 | . 2 1 . Branch Access Points 1 | . 1 . . Emergency Access Points 1 | . . 1 . Unreport Threat 1 | . . 1 . Locate Traps 2 | . 1 1 . Zone Layout 1 | . 1 . . Fabricator Hacks . | . . . . Repair Station Hacks 3 | . . 3 . Scan Component 2 | . . 2 . Repair 1 | . . 1 . Recycling Unit Hacks . | . . . . Scanalyzer 2 | . . 2 . Insert Component 1 | . . 1 . Analyze 1 | . . 1 . Garrison Access Hacks . | . . . . Unauthorized Hacks . | . . . . Terminals . | . . . . Fabricators . | . . . . Repair Stations . | . . . . Recycling Units . | . . . . Scanalyzers . | . . . . Garrison Access . | . . . . Data Cores Recovered . | . . . . Used . | . . . . Hacking Detections 8 | . 4 3 1 Full Trace Events 2 | . . 1 1 Feedback Events 1 | . . . 1 Corruption 1 | . . . 1 Feedback Blocked . | . . . . Robot Schematics Acquired . | . . . . Robots Built . | . . . . Authchips . | . . . . Time . | . . . . Total Robot Build Rating . | . . . . Part Schematics Acquired 1 | . . 1 . Parts Built . | . . . . Authchips . | . . . . Time . | . . . . Total Part Build Rating . | . . . . Parts Repaired 1 | . . 1 . Time 13 | . . 13 . Parts Recycled . | . . . . Recycled Matter . | . . . . Retrieved Matter . | . . . . Retrieved Components . | . . . . Parts Scanalyzed 1 | . . 1 . Part Schematics Acquired 1 | . . 1 . Parts Damaged . | . . . . Bothacking | -11 -10 -9 -8 ------------ Run | Yrd Mat Mat Mat Used RIF Installer . | . . . . Robots Hacked . | . . . . Non-combat . | . . . . Combat . | . . . . Robot Hacks Applied . | . . . . Relay Couplers Released . | . . . . Fabnet Peak Effective % . | . . . . Robots Rewired . | . . . . Allies Hacked . | . . . . Hacks Repelled . | . . . . Allies | -11 -10 -9 -8 -------- Run | Yrd Mat Mat Mat Total Allies . | . . . . Largest Group . | . . . . Highest-Rated Group . | . . . . Highest-Rated Ally . | . . . . Total Orders . | . . . . Ally Attacks . | . . . . Total Damage . | . . . . Kills . | . . . . Allies Corrupted . | . . . . Allies Melted . | . . . . Intel | -11 -10 -9 -8 ------- Run | Yrd Mat Mat Mat Robot Analysis Total . | . . . . Derelict Logs Recovered . | . . . . Drone Launches . | . . . . Drone Recoveries . | . . . . Exploration | -11 -10 -9 -8 ------------- Run | Yrd Mat Mat Mat Turns Passed 1912 | 96 606 1152 58 Spaces Moved 802 | 57 279 440 26 Core 10 | 10 . . . Treads 676 | 47 279 350 . Legs . | . . . . Wheels 116 | . . 90 26 Hover . | . . . . Flight . | . . . . Fastest Speed 50 | 50 160 105 105 Average Speed 173 | 140 160 190 105 Slowest Speed 240 | 160 160 240 105 Overloaded Moves . | . . . . Propulsion Burnouts . | . . . . Robots Hopped . | . . . . Cave-ins Triggered . | . . . . Exploration Rate (%) 26 | 5 54 39 8 Regions Visited 3 Branch Regions . Pre-discovered Areas . | . . . . Known Exits Taken . | . . . . Unknown Exits Taken 3 | 1 1 1 . Scrap Searched . | . . . . Spaces Dug . | . . . . Terrain Destroyed 8 | . . 8 . Melee . | . . . . Projectile . | . . . . AOE 8 | . . 8 . Terrain Rammed . | . . . . Walls Destroyed . | . . . . Machines Disabled . | . . . . Actions | -11 -10 -9 -8 --------- Run | Yrd Mat Mat Mat Total 1131 | 73 394 618 46 Wait 142 | 1 68 61 12 Move 799 | 56 278 439 26 Hop . | . . . . Pick Up 43 | 10 13 19 1 Fast Attach . | . . . . Attach 24 | 6 3 15 . Detach . | . . . . Swap 6 | . . 4 2 Drop 6 | . 3 3 . Fire 110 | . 29 76 5 Melee . | . . . . Ram . | . . . . Kick . | . . . . Crush 1 | . . 1 . Escape Stasis . | . . . . Rewire . | . . . . Trap . | . . . . Miscellaneous . | . . . . Route ------- -11/Scrapyard -10/Materials (discovered 3 exits: *Mat x2 / *Min) -9/Materials -8/Materials History --------- Turn | Location | Event 40 | -11/Scrapyard | Discovered new exit (range 15) 97 | -11/Scrapyard | Entered Materials 171 | -10/Materials | Discovered new exit (range 13) 307 | -10/Materials | Build established: Mutant 315 | -10/Materials | Identified exit to Mines 349 | -10/Materials | Discovered new exit (range 11) 671 | -10/Materials | Discovered new exit (range 13) 703 | -10/Materials | Entered another Materials area 703 | -9/Materials | Evolved 2 slots: Utility x2 1601 | -9/Materials | Lost 6 parts (1p2n1u2w) 1782 | -9/Materials | Core integrity fell below 50% 1830 | -9/Materials | Repaired Heat Sink 1836 | -9/Materials | Discovered new exit (range 16) 1855 | -9/Materials | Entered another Materials area 1855 | -8/Materials | Evolved 2 slots: Propulsion x2 1913 | -8/Materials | Self-destructed Last Messages --------------- 01830_ Repair station completes Heat Sink repairs. 01830_ Acquired Heat Sink. 01836_ EXIT=FOUND PARAMETERS=PROPULSION+2 LOCATION=UNKNOWN GOAL=ESCAPE 01862_ Acquired Shield Generator. 01863_ Discarded Terrain Scan Processor. 01877_ Connecting with Terminal... 01877_ Current location identified: Materials >>Query(Human) Homo sapiens, dominant species in the [Solar System] until civilization in that system was presumably wiped out during the [Solar War]. Feedback: System corruption (+1%). 01877_ ALERT: Suspicious activity at Terminal M012. Dispatching Investigation squad. 01896_ Flight Unit melted. 01896_ S-10 Pest destroyed. 01910_ Wheel destroyed. 01912_ Lgt. Ion Engine destroyed. Map ----- +----------------------------------------------------+ | ????????????????????????????????????????? | | ????????????????????????????????????????? | | ????????????????????????????????????????? | | ????????????????????????????????????????? | | ????????????????????????????????????????? | | ????????????????????????????????????????? | | ????????????????????????????????????????? | | ????????????????????????????????????????? | | ????????????????????????????????????????? | | ????????????????????????????????????????? | | ????????????????????????????????????????? | | ????????????????????????????????????????? | | ????????????????????????????????????????? | | ??????????????# ????????????????????????? | | ??????##??????#g????????????????????????? | | ?????## ####??# ????????????????????????? | | ????? ??# ????????????????????????? | | ????? ""## ????????????????????????? | | ????? [ T"## ????????????????????????? | | ?????? ""##g#####???????????????????? | | ?????? # #???????????????????? | | ???????" ?# ]= #???????????????????? | | ???????" ?# ]= #???????????????????? | | ???????? ??# = #???????????????????? | | ???????? ??# ]#???????????????????? | | ??????###+#### %@= #???????????????????? | | ??????# ###g######+?????????????????? | | ??????# / %* ??????????? | | ??????# T ??????????? | | ??????# ??????????? | | ??????# #### ##########???????????? | | ######## ##??? #????????????????????? | | # # #???? #????????????????????? | | # # #???? +????????????????????? | | # + #???? #????????????????????? | | # # #???? #????????????????????? | | # # #???? #????????????????????? | | # # #???? #????????????????????? | | # #####????? #????????????????????? | | # #????????? #????????????????????? | | # #????????? #????????????????????? | | # #????????? ??????????????????????? | | # #????????????????????????????????? | | # !! #????????????????????????????????? | | # !! #????????????????????????????????? | | ########????????????????????????????????? | | ????????????????????????????????????????? | | ????????????????????????????????????????? | | ????????????????????????????????????????? | | ????????????????????????????????????????? | +----------------------------------------------------+ Best States ------------- Heat Dissipation 41 Energy Generation 12 Energy Capacity 265 Matter Stores 300 Matter Capacity 300 Sight Range 16 Terrain Scan Range 14 Terrain Scan Density 160 Armor Coverage 450 Evasion (%) 40 Recoil Reduction 2 Item Schematics ----------------- Cooling System | -9/Materials | Scanalyzed Robot Schematics ------------------ None Fabricated ------------ Nothing Alien Tech Used ----------------- None Achievements -------------- None Challenges ------------ None Game ------ Seed SuspensionLightningSword Manual? 0 Play Time 00:18:44 Cumulative 81.0 hours Start 2024.05.15 @ 15:05:28 End 2024.05.15 @ 15:34:23 Sessions 1 Manual Loads 0 Difficulty Rogue Special Mode None Game No. 100 Rogue 84 Adventurer 15 Explorer 1 Win Type - Total 0 Types 0/0/0/0/0/0/0/0/0 Lore% 25 Gallery% 40 Achievement% 39 Wizard Run 0 Options --------- Layout 1 ASCII 0 Keyboard 0 Movement Numpad Keybinds 0 Fullscreen 1 Font 24/Smallcaps Map View 76x35 Zoom Use 0% Tactical HUD 1 Map Filters NONE Filters NONE Steam 1 RUN: 841ef51c-156a-4c23-8b8a-f63e33a7feba